[Event "Titled Tuesday Blitz May 9 Early 2023"]
[White "Shubenkova, Veronika"]
[Black "bubeliang"]
[WhiteFideId "44124040"]
[WhiteElo "2060"]
[BlackElo "2649"]
[Result "0-1"]
[Round "03"]
[TimeControl "180+2"]
[Date "2023.05.09"]
[WhiteClock "0:00:38"]
[BlackClock "0:00:21"]

1. e4 {[%clk 0:03:00]}  c6 {[%clk 0:03:00]} 2. d4 {[%clk 0:03:00]}  d5 {[%clk 0:02:59]} 3. Nc3 {[%clk 0:03:01]}  dxe4 {[%clk 0:02:59]} 4. Nxe4 {[%clk 0:03:01]}  Nf6 {[%clk 0:03:00]} 5. Nxf6+ {[%clk 0:02:56]}  exf6 {[%clk 0:03:01]} 6. c3 {[%clk 0:02:56]}  Bd6 {[%clk 0:03:01]} 7. Nf3 {[%clk 0:02:55]}  O-O {[%clk 0:03:01]} 8. Be2 {[%clk 0:02:56]}  Re8 {[%clk 0:03:01]} 9. O-O {[%clk 0:02:57]}  Nd7 {[%clk 0:03:01]} 10. Be3 {[%clk 0:02:57]}  Nf8 {[%clk 0:03:01]} 11. Qd2 {[%clk 0:02:57]}  Be6 {[%clk 0:03:02]} 12. Rae1 {[%clk 0:02:56]}  Qd7 {[%clk 0:03:02]} 13. b3 {[%clk 0:02:54]}  Rad8 {[%clk 0:03:01]} 14. c4 {[%clk 0:02:54]}  Ng6 {[%clk 0:02:58]} 15. Rd1 {[%clk 0:02:52]}  Bg4 {[%clk 0:02:57]} 16. Rfe1 {[%clk 0:02:52]}  a6 {[%clk 0:02:53]} 17. d5 {[%clk 0:02:52]}  c5 {[%clk 0:02:51]} 18. Kh1 {[%clk 0:02:41]}  h5 {[%clk 0:02:45]} 19. Ng1 {[%clk 0:02:38]}  Bb8 {[%clk 0:02:23]} 20. Bxg4 {[%clk 0:02:35]}  hxg4 {[%clk 0:02:22]} 21. Ne2 {[%clk 0:02:31]}  f5 {[%clk 0:02:06]} 22. Nf4 {[%clk 0:02:30]}  Qd6 {[%clk 0:01:39]} 23. g3 {[%clk 0:02:28]}  Ne5 {[%clk 0:01:39]} 24. Qc2 {[%clk 0:02:28]}  g6 {[%clk 0:01:16]} 25. Nd3 {[%clk 0:02:13]}  Nf3 {[%clk 0:01:14]} 26. Re2 {[%clk 0:02:11]}  Qf6 {[%clk 0:01:12]} 27. Nxc5 {[%clk 0:02:01]}  Qh8 {[%clk 0:00:59]} 28. h4 {[%clk 0:01:54]}  Nxh4 {[%clk 0:00:59]} 29. f4 {[%clk 0:01:38]}  Rxe3 {[%clk 0:00:33]} 30. Rh2 {[%clk 0:01:22]}  Rxg3 {[%clk 0:00:32]} 31. Qf2 {[%clk 0:01:18]}  Rh3 {[%clk 0:00:25]} 32. Rxh3 {[%clk 0:01:17]}  gxh3 {[%clk 0:00:26]} 33. Nxb7 {[%clk 0:01:15]}  Qh5 {[%clk 0:00:24]} 34. Rg1 {[%clk 0:01:09]}  Re8 {[%clk 0:00:21]} 35. d6 {[%clk 0:01:03]}  Re2 {[%clk 0:00:20]} 36. Qg3 {[%clk 0:00:53]}  Qf3+ {[%clk 0:00:19]} 37. Qxf3 {[%clk 0:00:41]}  Nxf3 {[%clk 0:00:20]} 38. Rg2 {[%clk 0:00:38]}  hxg2# {[%clk 0:00:21]} 0-1


[Site "https://www.chess.com"]

[Event "Titled Tuesday Blitz May 9 Early 2023"]
[White "Fernandez Siles, Luis"]
[Black "Yelisieiev, Yevhenii"]
[WhiteFideId "2209420"]
[BlackFideId "14139642"]
[WhiteElo "2195"]
[BlackElo "2403"]
[Result "1-0"]
[Round "03"]
[TimeControl "180+2"]
[Date "2023.05.09"]
[WhiteClock "0:00:02"]
[BlackClock "0:00:03"]

1. e4 {[%clk 0:03:00]}  d6 {[%clk 0:02:58]} 2. Nc3 {[%clk 0:03:00]}  Nf6 {[%clk 0:02:59]} 3. f4 {[%clk 0:03:00]}  c5 {[%clk 0:02:53]} 4. Nf3 {[%clk 0:02:58]}  Nc6 {[%clk 0:02:53]} 5. Bb5 {[%clk 0:02:58]}  Bd7 {[%clk 0:02:30]} 6. Bxc6 {[%clk 0:02:52]}  Bxc6 {[%clk 0:02:29]} 7. d3 {[%clk 0:02:53]}  g6 {[%clk 0:02:28]} 8. O-O {[%clk 0:02:51]}  Bg7 {[%clk 0:02:28]} 9. Qe1 {[%clk 0:02:40]}  O-O {[%clk 0:02:26]} 10. Qh4 {[%clk 0:02:39]}  e6 {[%clk 0:02:21]} 11. f5 {[%clk 0:02:38]}  exf5 {[%clk 0:02:18]} 12. Bh6 {[%clk 0:02:36]}  Nh5 {[%clk 0:01:54]} 13. Bxg7 {[%clk 0:02:11]}  Qxh4 {[%clk 0:01:34]} 14. Nxh4 {[%clk 0:02:12]}  Nxg7 {[%clk 0:01:26]} 15. exf5 {[%clk 0:02:09]}  Rae8 {[%clk 0:01:26]} 16. f6 {[%clk 0:01:57]}  Ne6 {[%clk 0:01:24]} 17. Nf3 {[%clk 0:01:42]}  Nf4 {[%clk 0:01:16]} 18. Rae1 {[%clk 0:01:26]}  Re6 {[%clk 0:01:10]} 19. Rxe6 {[%clk 0:01:14]}  fxe6 {[%clk 0:01:09]} 20. Ng5 {[%clk 0:01:11]}  e5 {[%clk 0:01:00]} 21. Nce4 {[%clk 0:01:04]}  h6 {[%clk 0:00:53]} 22. f7+ {[%clk 0:00:59]}  Kh8 {[%clk 0:00:32]} 23. g3 {[%clk 0:00:39]}  hxg5 {[%clk 0:00:29]} 24. gxf4 {[%clk 0:00:34]}  Bxe4 {[%clk 0:00:28]} 25. dxe4 {[%clk 0:00:34]}  gxf4 {[%clk 0:00:28]} 26. Rd1 {[%clk 0:00:33]}  Rxf7 {[%clk 0:00:19]} 27. Rxd6 {[%clk 0:00:33]}  Kg7 {[%clk 0:00:14]} 28. Rd5 {[%clk 0:00:32]}  Kf6 {[%clk 0:00:12]} 29. Rxc5 {[%clk 0:00:32]}  Rd7 {[%clk 0:00:13]} 30. Rd5 {[%clk 0:00:19]}  Rc7 {[%clk 0:00:08]} 31. Rd6+ {[%clk 0:00:16]}  Kf7 {[%clk 0:00:07]} 32. c3 {[%clk 0:00:15]}  Rc4 {[%clk 0:00:06]} 33. Rd7+ {[%clk 0:00:14]}  Kf6 {[%clk 0:00:06]} 34. Rxb7 {[%clk 0:00:13]}  Rxe4 {[%clk 0:00:07]} 35. Rxa7 {[%clk 0:00:13]}  Re2 {[%clk 0:00:05]} 36. b4 {[%clk 0:00:12]}  Rc2 {[%clk 0:00:05]} 37. b5 {[%clk 0:00:12]}  Rxc3 {[%clk 0:00:03]} 38. b6 {[%clk 0:00:12]}  Rc1+ {[%clk 0:00:03]} 39. Kf2 {[%clk 0:00:12]}  Rb1 {[%clk 0:00:04]} 40. Kf3 {[%clk 0:00:06]}  Kf5 {[%clk 0:00:02]} 41. Rf7+ {[%clk 0:00:05]}  Kg5 {[%clk 0:00:02]} 42. Rb7 {[%clk 0:00:03]}  Rb2 {[%clk 0:00:02]} 43. a4 {[%clk 0:00:03]}  Rb3+ {[%clk 0:00:02]} 44. Ke4 {[%clk 0:00:02]}  Kf6 {[%clk 0:00:02]} 45. a5 {[%clk 0:00:02]}  f3 {[%clk 0:00:03]} 46. Rb8 {[%clk 0:00:01]}  Kf7 {[%clk 0:00:02]} 47. Rb7+ {[%clk 0:00:01]}  Kf6 {[%clk 0:00:02]} 48. Rb8 {[%clk 0:00:02]}  Kg7 {[%clk 0:00:03]} 49. Rb7+ {[%clk 0:00:02]}  Kh6 {[%clk 0:00:02]} 50. Rf7 {[%clk 0:00:02]}  g5 {[%clk 0:00:02]} 51. Rxf3 {[%clk 0:00:02]}  Rb4+ {[%clk 0:00:02]} 52. Kxe5 {[%clk 0:00:02]}  Rb5+ {[%clk 0:00:03]} 53. Kf6 {[%clk 0:00:02]}  Rxa5 {[%clk 0:00:03]} 54. Rh3# {[%clk 0:00:02]} 1-0


[Site "https://www.chess.com"]

[Event "Titled Tuesday Blitz May 9 Early 2023"]
[White "Namitbir Singh Walia"]
[Black "Bashkansky, Ethan"]
[WhiteFideId "35071068"]
[BlackFideId "2071533"]
[WhiteElo "2239"]
[BlackElo "2353"]
[Result "1-0"]
[Round "03"]
[TimeControl "180+2"]
[Date "2023.05.09"]
[WhiteClock "0:01:04"]
[BlackClock "0:00:16"]

1. e4 {[%clk 0:03:00]}  c6 {[%clk 0:03:00]} 2. d4 {[%clk 0:02:53]}  d5 {[%clk 0:03:01]} 3. exd5 {[%clk 0:02:52]}  cxd5 {[%clk 0:03:02]} 4. Bd3 {[%clk 0:02:52]}  Nf6 {[%clk 0:03:02]} 5. c3 {[%clk 0:02:52]}  Nc6 {[%clk 0:03:02]} 6. h3 {[%clk 0:02:49]}  g6 {[%clk 0:03:02]} 7. Nf3 {[%clk 0:02:50]}  Bf5 {[%clk 0:03:02]} 8. Bf4 {[%clk 0:02:43]}  Bxd3 {[%clk 0:02:48]} 9. Qxd3 {[%clk 0:02:42]}  Nh5 {[%clk 0:02:40]} 10. Bh2 {[%clk 0:02:36]}  Bh6 {[%clk 0:02:21]} 11. O-O {[%clk 0:02:18]}  O-O {[%clk 0:02:08]} 12. Nbd2 {[%clk 0:02:17]}  Nf4 {[%clk 0:02:03]} 13. Qb5 {[%clk 0:01:43]}  Qd7 {[%clk 0:01:56]} 14. Rfe1 {[%clk 0:01:35]}  a6 {[%clk 0:01:49]} 15. Qb3 {[%clk 0:01:31]}  b5 {[%clk 0:01:22]} 16. Nf1 {[%clk 0:01:12]}  Rac8 {[%clk 0:01:06]} 17. Ne3 {[%clk 0:01:07]}  e6 {[%clk 0:00:52]} 18. Ng4 {[%clk 0:01:05]}  f5 {[%clk 0:00:18]} 19. Nxh6+ {[%clk 0:01:04]}  Kg7 {[%clk 0:00:16]} 20. Bxf4 {[%clk 0:01:04]} 1-0


[Site "https://www.chess.com"]

[Event "Titled Tuesday Blitz May 9 Early 2023"]
[White "Staudenhocker43"]
[Black "Mohammed, Zozek Salah Mohammed"]
[BlackFideId "4803361"]
[WhiteElo "2487"]
[BlackElo "2211"]
[Result "1-0"]
[Round "03"]
[TimeControl "180+2"]
[Date "2023.05.09"]
[WhiteClock "0:01:34"]
[BlackClock "0:00:00"]

1. Nf3 {[%clk 0:03:00]}  d5 {[%clk 0:02:56]} 2. c4 {[%clk 0:03:01]}  c6 {[%clk 0:02:54]} 3. e3 {[%clk 0:03:00]}  Nf6 {[%clk 0:02:54]} 4. Nc3 {[%clk 0:03:00]}  e6 {[%clk 0:02:55]} 5. b3 {[%clk 0:02:57]}  Nbd7 {[%clk 0:02:55]} 6. Bb2 {[%clk 0:02:57]}  Bd6 {[%clk 0:02:55]} 7. Qc2 {[%clk 0:02:49]}  O-O {[%clk 0:02:55]} 8. Be2 {[%clk 0:02:49]}  b6 {[%clk 0:02:54]} 9. O-O {[%clk 0:02:47]}  Bb7 {[%clk 0:02:54]} 10. d4 {[%clk 0:02:47]}  Rc8 {[%clk 0:02:49]} 11. Rad1 {[%clk 0:02:46]}  Qe7 {[%clk 0:02:48]} 12. Rfe1 {[%clk 0:02:45]}  Rfd8 {[%clk 0:02:46]} 13. h3 {[%clk 0:02:41]}  c5 {[%clk 0:02:44]} 14. cxd5 {[%clk 0:02:41]}  cxd4 {[%clk 0:02:19]} 15. Nxd4 {[%clk 0:02:36]}  Nxd5 {[%clk 0:02:15]} 16. Nxd5 {[%clk 0:02:19]}  Bxd5 {[%clk 0:02:09]} 17. Qb1 {[%clk 0:02:19]}  Nf6 {[%clk 0:02:05]} 18. Ba6 {[%clk 0:02:11]}  Rc7 {[%clk 0:01:50]} 19. Nb5 {[%clk 0:01:56]}  Rcd7 {[%clk 0:01:47]} 20. Nxd6 {[%clk 0:01:40]}  Qxd6 {[%clk 0:01:43]} 21. Bxf6 {[%clk 0:01:36]}  gxf6 {[%clk 0:00:00]} 22. e4 {[%clk 0:01:34]} 1-0


[Site "https://www.chess.com"]

[Event "Titled Tuesday Blitz May 9 Early 2023"]
[White "Hoffmann, Asa"]
[Black "KorolDimitriy75"]
[WhiteFideId "2001470"]
[WhiteElo "2117"]
[BlackElo "2469"]
[Result "1-0"]
[Round "03"]
[TimeControl "180+2"]
[Date "2023.05.09"]
[WhiteClock "0:00:30"]
[BlackClock "0:00:01"]

1. d4 {[%clk 0:02:58]}  Nf6 {[%clk 0:02:58]} 2. Bg5 {[%clk 0:02:55]}  Ne4 {[%clk 0:02:57]} 3. Bf4 {[%clk 0:02:55]}  c5 {[%clk 0:02:57]} 4. f3 {[%clk 0:02:55]}  Nf6 {[%clk 0:02:57]} 5. dxc5 {[%clk 0:02:55]}  Qa5+ {[%clk 0:02:57]} 6. Nc3 {[%clk 0:02:54]}  Qxc5 {[%clk 0:02:57]} 7. e4 {[%clk 0:02:55]}  d6 {[%clk 0:02:57]} 8. Qd2 {[%clk 0:02:55]}  g6 {[%clk 0:02:56]} 9. Be3 {[%clk 0:02:52]}  Qa5 {[%clk 0:02:55]} 10. Nb5 {[%clk 0:02:51]}  Qxd2+ {[%clk 0:02:53]} 11. Kxd2 {[%clk 0:02:51]}  Na6 {[%clk 0:02:51]} 12. Nxa7 {[%clk 0:02:50]}  Bd7 {[%clk 0:02:45]} 13. Nb5 {[%clk 0:02:49]}  Bg7 {[%clk 0:02:43]} 14. c3 {[%clk 0:02:47]}  O-O {[%clk 0:02:42]} 15. Na3 {[%clk 0:02:41]}  Rfd8 {[%clk 0:02:02]} 16. Bd3 {[%clk 0:02:37]}  Bc6 {[%clk 0:01:54]} 17. Ne2 {[%clk 0:02:34]}  e5 {[%clk 0:01:49]} 18. c4 {[%clk 0:02:30]}  Nc5 {[%clk 0:01:43]} 19. Nc3 {[%clk 0:02:27]}  Ne6 {[%clk 0:01:38]} 20. Nd5 {[%clk 0:02:24]}  Bxd5 {[%clk 0:01:36]} 21. cxd5 {[%clk 0:02:21]}  Nd4 {[%clk 0:01:36]} 22. Rhc1 {[%clk 0:02:15]}  Nd7 {[%clk 0:01:33]} 23. Nc4 {[%clk 0:02:13]}  Nc5 {[%clk 0:01:31]} 24. b4 {[%clk 0:02:10]}  Ncb3+ {[%clk 0:01:28]} 25. axb3 {[%clk 0:02:08]}  Nxb3+ {[%clk 0:01:29]} 26. Kc3 {[%clk 0:01:56]}  Rxa1 {[%clk 0:00:29]} 27. Kxb3 {[%clk 0:01:53]}  Rxc1 {[%clk 0:00:26]} 28. Bxc1 {[%clk 0:01:53]}  Bf8 {[%clk 0:00:27]} 29. Nb6 {[%clk 0:01:43]}  Be7 {[%clk 0:00:25]} 30. Bb5 {[%clk 0:01:41]}  Kg7 {[%clk 0:00:24]} 31. Be3 {[%clk 0:01:38]}  h5 {[%clk 0:00:23]} 32. g3 {[%clk 0:01:37]}  h4 {[%clk 0:00:22]} 33. g4 {[%clk 0:01:35]}  f5 {[%clk 0:00:21]} 34. gxf5 {[%clk 0:01:30]}  gxf5 {[%clk 0:00:22]} 35. exf5 {[%clk 0:01:30]}  Kf6 {[%clk 0:00:22]} 36. Bd3 {[%clk 0:01:30]}  Rg8 {[%clk 0:00:20]} 37. Bf2 {[%clk 0:01:19]}  Kf7 {[%clk 0:00:15]} 38. Bf1 {[%clk 0:01:09]}  Bg5 {[%clk 0:00:14]} 39. Bh3 {[%clk 0:01:07]}  Kf6 {[%clk 0:00:12]} 40. Nc4 {[%clk 0:01:06]}  Ke7 {[%clk 0:00:11]} 41. Bb6 {[%clk 0:00:59]}  Rh8 {[%clk 0:00:10]} 42. Bc7 {[%clk 0:00:58]}  Bf4 {[%clk 0:00:09]} 43. Bxd6+ {[%clk 0:00:56]}  Kf6 {[%clk 0:00:10]} 44. Bc5 {[%clk 0:00:51]}  Bxh2 {[%clk 0:00:10]} 45. d6 {[%clk 0:00:51]}  Bf4 {[%clk 0:00:08]} 46. d7 {[%clk 0:00:50]}  Rd8 {[%clk 0:00:07]} 47. Nb6 {[%clk 0:00:48]}  e4 {[%clk 0:00:05]} 48. fxe4 {[%clk 0:00:48]}  Ke5 {[%clk 0:00:05]} 49. Bg2 {[%clk 0:00:44]}  Rg8 {[%clk 0:00:05]} 50. Kc4 {[%clk 0:00:43]}  Bg5 {[%clk 0:00:03]} 51. Bd4+ {[%clk 0:00:37]}  Kf4 {[%clk 0:00:03]} 52. e5 {[%clk 0:00:35]}  Kg3 {[%clk 0:00:04]} 53. Bd5 {[%clk 0:00:32]}  h3 {[%clk 0:00:04]} 54. Bxg8 {[%clk 0:00:31]}  h2 {[%clk 0:00:01]} 55. Bd5 {[%clk 0:00:30]} 1-0


[Site "https://www.chess.com"]

[Event "Titled Tuesday Blitz May 9 Early 2023"]
[White "Mayaud, Raphael"]
[Black "Ciolacu, Alessia-Mihaela"]
[WhiteFideId "627151"]
[BlackFideId "1252640"]
[WhiteElo "2191"]
[BlackElo "1937"]
[Result "0-1"]
[Round "03"]
[TimeControl "180+2"]
[Date "2023.05.09"]
[WhiteClock "0:00:00"]
[BlackClock "0:00:25"]

1. d4 {[%clk 0:02:59]}  Nf6 {[%clk 0:02:56]} 2. Bg5 {[%clk 0:02:59]}  d5 {[%clk 0:02:52]} 3. Bxf6 {[%clk 0:02:59]}  gxf6 {[%clk 0:02:50]} 4. c4 {[%clk 0:02:58]}  c6 {[%clk 0:02:48]} 5. e3 {[%clk 0:02:49]}  Bf5 {[%clk 0:02:43]} 6. Nc3 {[%clk 0:02:46]}  e6 {[%clk 0:02:35]} 7. Qb3 {[%clk 0:02:46]}  Qc8 {[%clk 0:02:29]} 8. Rc1 {[%clk 0:02:41]}  Qd7 {[%clk 0:02:22]} 9. Nge2 {[%clk 0:02:35]}  Bd3 {[%clk 0:02:18]} 10. Nf4 {[%clk 0:02:33]}  dxc4 {[%clk 0:02:17]} 11. Qd1 {[%clk 0:02:16]}  Bxf1 {[%clk 0:02:16]} 12. Kxf1 {[%clk 0:02:16]}  Na6 {[%clk 0:02:11]} 13. a3 {[%clk 0:02:14]}  Nc7 {[%clk 0:02:10]} 14. h4 {[%clk 0:02:13]}  Bd6 {[%clk 0:02:08]} 15. g3 {[%clk 0:02:12]}  e5 {[%clk 0:01:59]} 16. Nh5 {[%clk 0:01:54]}  Be7 {[%clk 0:01:54]} 17. Qe2 {[%clk 0:01:31]}  b5 {[%clk 0:01:49]} 18. Kg2 {[%clk 0:01:21]}  O-O {[%clk 0:01:33]} 19. Rcd1 {[%clk 0:01:07]}  Qe6 {[%clk 0:01:32]} 20. g4 {[%clk 0:00:42]}  Rfd8 {[%clk 0:01:26]} 21. Ng3 {[%clk 0:00:36]}  Bf8 {[%clk 0:01:12]} 22. Nf5 {[%clk 0:00:35]}  Nd5 {[%clk 0:01:11]} 23. Qf3 {[%clk 0:00:21]}  Nxc3 {[%clk 0:00:59]} 24. bxc3 {[%clk 0:00:21]}  Bxa3 {[%clk 0:00:58]} 25. Kh3 {[%clk 0:00:18]}  Bf8 {[%clk 0:00:56]} 26. Ra1 {[%clk 0:00:13]}  a5 {[%clk 0:00:56]} 27. Rhb1 {[%clk 0:00:12]}  b4 {[%clk 0:00:55]} 28. Ng3 {[%clk 0:00:12]}  b3 {[%clk 0:00:52]} 29. Ne4 {[%clk 0:00:11]}  Be7 {[%clk 0:00:47]} 30. Rg1 {[%clk 0:00:08]}  a4 {[%clk 0:00:46]} 31. Ng3 {[%clk 0:00:08]}  a3 {[%clk 0:00:44]} 32. Nf5 {[%clk 0:00:08]}  Bf8 {[%clk 0:00:41]} 33. h5 {[%clk 0:00:07]}  a2 {[%clk 0:00:40]} 34. Qe2 {[%clk 0:00:05]}  exd4 {[%clk 0:00:34]} 35. cxd4 {[%clk 0:00:04]}  c5 {[%clk 0:00:32]} 36. d5 {[%clk 0:00:02]}  Qxd5 {[%clk 0:00:29]} 37. Rad1 {[%clk 0:00:01]}  Qe6 {[%clk 0:00:28]} 38. Qf3 {[%clk 0:00:01]}  Rxd1 {[%clk 0:00:25]} 39. Rxd1 {[%clk 0:00:00]}  a1=Q {[%clk 0:00:25]} 0-1


[Site "https://www.chess.com"]

[Event "Titled Tuesday Blitz May 9 Early 2023"]
[White "Rosenberg, Evan S"]
[Black "Atakhan, Abtin"]
[WhiteFideId "2019299"]
[BlackFideId "22502203"]
[WhiteElo "2246"]
[BlackElo "2008"]
[Result "0-1"]
[Round "03"]
[TimeControl "180+2"]
[Date "2023.05.09"]
[WhiteClock "0:00:00"]
[BlackClock "0:00:05"]

1. d4 {[%clk 0:03:00]}  d5 {[%clk 0:02:58]} 2. Nf3 {[%clk 0:03:01]}  Nf6 {[%clk 0:02:58]} 3. c3 {[%clk 0:03:01]}  g6 {[%clk 0:02:57]} 4. h3 {[%clk 0:02:56]}  Bg7 {[%clk 0:02:55]} 5. Bf4 {[%clk 0:02:56]}  c5 {[%clk 0:02:56]} 6. e3 {[%clk 0:02:55]}  cxd4 {[%clk 0:02:56]} 7. exd4 {[%clk 0:02:55]}  Nc6 {[%clk 0:02:57]} 8. Bd3 {[%clk 0:02:54]}  Qb6 {[%clk 0:02:57]} 9. Qe2 {[%clk 0:02:54]}  Bf5 {[%clk 0:02:57]} 10. Bxf5 {[%clk 0:02:54]}  gxf5 {[%clk 0:02:58]} 11. O-O {[%clk 0:02:54]}  Ne4 {[%clk 0:02:58]} 12. a4 {[%clk 0:02:47]}  a6 {[%clk 0:02:53]} 13. Re1 {[%clk 0:02:41]}  O-O {[%clk 0:02:51]} 14. Ng5 {[%clk 0:02:38]}  h6 {[%clk 0:02:32]} 15. Nf3 {[%clk 0:02:38]}  e6 {[%clk 0:02:32]} 16. Ne5 {[%clk 0:02:17]}  Nxe5 {[%clk 0:02:32]} 17. dxe5 {[%clk 0:02:17]}  Kh7 {[%clk 0:02:25]} 18. Nd2 {[%clk 0:01:50]}  Qxb2 {[%clk 0:02:12]} 19. Rab1 {[%clk 0:01:50]}  Qxc3 {[%clk 0:02:07]} 20. Nxe4 {[%clk 0:01:42]}  fxe4 {[%clk 0:02:01]} 21. Rxb7 {[%clk 0:01:41]}  Rab8 {[%clk 0:01:54]} 22. Rxb8 {[%clk 0:01:25]}  Rxb8 {[%clk 0:01:55]} 23. Rc1 {[%clk 0:01:25]}  Qd3 {[%clk 0:01:54]} 24. Qh5 {[%clk 0:01:24]}  Rb1 {[%clk 0:01:48]} 25. Rxb1 {[%clk 0:01:24]}  Qxb1+ {[%clk 0:01:49]} 26. Kh2 {[%clk 0:01:25]}  Qc2 {[%clk 0:01:25]} 27. Bg3 {[%clk 0:01:07]}  d4 {[%clk 0:01:19]} 28. Qxf7 {[%clk 0:01:01]}  d3 {[%clk 0:01:20]} 29. Bh4 {[%clk 0:00:55]}  Qc8 {[%clk 0:01:05]} 30. Bf6 {[%clk 0:00:53]}  Qf8 {[%clk 0:01:03]} 31. Qxe6 {[%clk 0:00:50]}  d2 {[%clk 0:00:53]} 32. Qf5+ {[%clk 0:00:49]}  Kh8 {[%clk 0:00:48]} 33. Qd7 {[%clk 0:00:41]}  Bxf6 {[%clk 0:00:44]} 34. exf6 {[%clk 0:00:41]}  Qxf6 {[%clk 0:00:37]} 35. Qxd2 {[%clk 0:00:39]}  Qe5+ {[%clk 0:00:33]} 36. g3 {[%clk 0:00:38]}  Qf6 {[%clk 0:00:33]} 37. Kg1 {[%clk 0:00:36]}  Kg7 {[%clk 0:00:30]} 38. Qd7+ {[%clk 0:00:35]}  Kf8 {[%clk 0:00:28]} 39. h4 {[%clk 0:00:26]}  Qf3 {[%clk 0:00:24]} 40. Qd6+ {[%clk 0:00:22]}  Kg7 {[%clk 0:00:20]} 41. Qxa6 {[%clk 0:00:22]}  Qd1+ {[%clk 0:00:19]} 42. Kg2 {[%clk 0:00:15]}  Qf3+ {[%clk 0:00:19]} 43. Kg1 {[%clk 0:00:15]}  Qd1+ {[%clk 0:00:19]} 44. Qf1 {[%clk 0:00:16]}  Qxa4 {[%clk 0:00:19]} 45. Qe2 {[%clk 0:00:15]}  Qd4 {[%clk 0:00:19]} 46. Kg2 {[%clk 0:00:15]}  Qd5 {[%clk 0:00:19]} 47. Qg4+ {[%clk 0:00:14]}  Kf6 {[%clk 0:00:18]} 48. Kh2 {[%clk 0:00:13]}  Qd4 {[%clk 0:00:17]} 49. Qf4+ {[%clk 0:00:12]}  Kg7 {[%clk 0:00:17]} 50. h5 {[%clk 0:00:12]}  Qd5 {[%clk 0:00:16]} 51. g4 {[%clk 0:00:11]}  Qd3 {[%clk 0:00:13]} 52. Kg2 {[%clk 0:00:11]}  Qc2 {[%clk 0:00:11]} 53. Qe5+ {[%clk 0:00:09]}  Kf7 {[%clk 0:00:11]} 54. Qf5+ {[%clk 0:00:09]}  Ke7 {[%clk 0:00:10]} 55. Qh7+ {[%clk 0:00:09]}  Ke8 {[%clk 0:00:10]} 56. Qxh6 {[%clk 0:00:09]}  Qe2 {[%clk 0:00:10]} 57. Qg6+ {[%clk 0:00:06]}  Kf8 {[%clk 0:00:09]} 58. Qf5+ {[%clk 0:00:06]}  Kg7 {[%clk 0:00:09]} 59. Kg3 {[%clk 0:00:04]}  Qe1 {[%clk 0:00:08]} 60. Qg6+ {[%clk 0:00:03]}  Kh8 {[%clk 0:00:08]} 61. h6 {[%clk 0:00:03]}  Qg1+ {[%clk 0:00:08]} 62. Kf4 {[%clk 0:00:04]}  Qxf2+ {[%clk 0:00:08]} 63. Kg5 {[%clk 0:00:04]}  Qd2+ {[%clk 0:00:05]} 64. Kf5 {[%clk 0:00:02]}  Qf2+ {[%clk 0:00:05]} 65. Ke6 {[%clk 0:00:02]}  Qb6+ {[%clk 0:00:05]} 66. Kf5 {[%clk 0:00:01]}  Qxg6+ {[%clk 0:00:04]} 67. Kxg6 {[%clk 0:00:00]}  e3 {[%clk 0:00:05]} 0-1


[Site "https://www.chess.com"]

[Event "Titled Tuesday Blitz May 9 Early 2023"]
[White "Zhou, Qiyu"]
[Black "Aldokhin, Ivan"]
[WhiteFideId "505161"]
[BlackFideId "24115720"]
[WhiteElo "2101"]
[BlackElo "2322"]
[Result "1/2-1/2"]
[Round "03"]
[TimeControl "180+2"]
[Date "2023.05.09"]
[WhiteClock "0:00:06"]
[BlackClock "0:00:10"]

1. e4 {[%clk 0:03:00]}  c5 {[%clk 0:02:44]} 2. Nf3 {[%clk 0:02:59]}  e6 {[%clk 0:02:44]} 3. d4 {[%clk 0:02:58]}  cxd4 {[%clk 0:02:45]} 4. Nxd4 {[%clk 0:02:58]}  a6 {[%clk 0:02:45]} 5. c4 {[%clk 0:02:55]}  Qc7 {[%clk 0:02:46]} 6. Nc3 {[%clk 0:02:54]}  Nf6 {[%clk 0:02:46]} 7. Be3 {[%clk 0:02:49]}  d6 {[%clk 0:02:46]} 8. f3 {[%clk 0:02:49]}  Be7 {[%clk 0:02:47]} 9. Be2 {[%clk 0:02:48]}  Nbd7 {[%clk 0:02:48]} 10. O-O {[%clk 0:02:49]}  O-O {[%clk 0:02:48]} 11. Qd2 {[%clk 0:02:49]}  b6 {[%clk 0:02:49]} 12. Rac1 {[%clk 0:02:49]}  Bb7 {[%clk 0:02:50]} 13. Rfd1 {[%clk 0:02:47]}  Rac8 {[%clk 0:02:50]} 14. Bf1 {[%clk 0:02:47]}  Qb8 {[%clk 0:02:51]} 15. a3 {[%clk 0:02:36]}  Bd8 {[%clk 0:02:51]} 16. b4 {[%clk 0:02:31]}  Bc7 {[%clk 0:02:52]} 17. h3 {[%clk 0:02:14]}  Rfe8 {[%clk 0:02:47]} 18. Nb3 {[%clk 0:02:01]}  Qa8 {[%clk 0:02:41]} 19. Qf2 {[%clk 0:02:00]}  Qb8 {[%clk 0:01:52]} 20. Kh1 {[%clk 0:01:27]}  h5 {[%clk 0:01:29]} 21. c5 {[%clk 0:01:01]}  dxc5 {[%clk 0:01:15]} 22. bxc5 {[%clk 0:01:01]}  Bg3 {[%clk 0:01:10]} 23. Qg1 {[%clk 0:00:53]}  bxc5 {[%clk 0:01:05]} 24. Nxc5 {[%clk 0:00:52]}  Nxc5 {[%clk 0:01:01]} 25. Bxc5 {[%clk 0:00:53]}  Qe5 {[%clk 0:00:54]} 26. Bd4 {[%clk 0:00:45]}  Qg5 {[%clk 0:00:54]} 27. Be3 {[%clk 0:00:43]}  Qa5 {[%clk 0:00:41]} 28. Ne2 {[%clk 0:00:37]}  Bb8 {[%clk 0:00:38]} 29. Bc5 {[%clk 0:00:27]}  h4 {[%clk 0:00:31]} 30. Bb4 {[%clk 0:00:18]}  Qe5 {[%clk 0:00:20]} 31. Bc3 {[%clk 0:00:14]}  Rxc3 {[%clk 0:00:12]} 32. Nxc3 {[%clk 0:00:13]}  Nh5 {[%clk 0:00:09]} 33. Ne2 {[%clk 0:00:13]}  a5 {[%clk 0:00:09]} 34. Rc5 {[%clk 0:00:12]}  Ng3+ {[%clk 0:00:03]} 35. Nxg3 {[%clk 0:00:12]}  Qxg3 {[%clk 0:00:04]} 36. Rxa5 {[%clk 0:00:10]}  Rc8 {[%clk 0:00:03]} 37. Rb5 {[%clk 0:00:07]}  Bc6 {[%clk 0:00:02]} 38. Rb2 {[%clk 0:00:06]}  Be5 {[%clk 0:00:02]} 39. Rbd2 {[%clk 0:00:05]}  Kh7 {[%clk 0:00:01]} 40. Rd8 {[%clk 0:00:05]}  Rc7 {[%clk 0:00:01]} 41. R8d2 {[%clk 0:00:05]}  Rb7 {[%clk 0:00:02]} 42. Bd3 {[%clk 0:00:05]}  Bb5 {[%clk 0:00:02]} 43. Bxb5 {[%clk 0:00:05]}  Rxb5 {[%clk 0:00:03]} 44. Rf1 {[%clk 0:00:04]}  Rb3 {[%clk 0:00:03]} 45. Ra2 {[%clk 0:00:04]}  Bf4 {[%clk 0:00:03]} 46. Re2 {[%clk 0:00:03]}  Rd3 {[%clk 0:00:03]} 47. a4 {[%clk 0:00:03]}  Ra3 {[%clk 0:00:04]} 48. Rc2 {[%clk 0:00:03]}  Rxa4 {[%clk 0:00:04]} 49. Re2 {[%clk 0:00:02]}  Ra3 {[%clk 0:00:04]} 50. Rfe1 {[%clk 0:00:02]}  e5 {[%clk 0:00:04]} 51. Rf1 {[%clk 0:00:02]}  Kg6 {[%clk 0:00:04]} 52. Rfe1 {[%clk 0:00:03]}  Ra6 {[%clk 0:00:05]} 53. Rf1 {[%clk 0:00:04]}  Kh7 {[%clk 0:00:05]} 54. Rfe1 {[%clk 0:00:04]}  Rg6 {[%clk 0:00:06]} 55. Rf1 {[%clk 0:00:04]}  Rd6 {[%clk 0:00:06]} 56. Rfe1 {[%clk 0:00:05]}  Qg5 {[%clk 0:00:06]} 57. Rf1 {[%clk 0:00:05]}  Bg3 {[%clk 0:00:07]} 58. Rb1 {[%clk 0:00:05]}  Bf4 {[%clk 0:00:07]} 59. Rf1 {[%clk 0:00:05]}  Rd3 {[%clk 0:00:07]} 60. Rfe1 {[%clk 0:00:05]}  Rc3 {[%clk 0:00:08]} 61. Rb1 {[%clk 0:00:05]}  Ra3 {[%clk 0:00:08]} 62. Rbe1 {[%clk 0:00:05]}  f6 {[%clk 0:00:08]} 63. Rf1 {[%clk 0:00:05]}  Ra4 {[%clk 0:00:08]} 64. Qf2 {[%clk 0:00:05]}  Rd4 {[%clk 0:00:08]} 65. Rc2 {[%clk 0:00:05]}  Bg3 {[%clk 0:00:09]} 66. Qg1 {[%clk 0:00:05]}  Bf4 {[%clk 0:00:09]} 67. Qf2 {[%clk 0:00:05]}  Be3 {[%clk 0:00:10]} 68. Qe2 {[%clk 0:00:05]}  Bf4 {[%clk 0:00:10]} 69. Qf2 {[%clk 0:00:06]} 1/2-1/2


[Site "https://www.chess.com"]